bitfinex/quotes_SOLUSD_20220119
["timestamp","ask_amount","ask_price","bid_price","bid_amount"]
[1642614402275,14.1569,136.67,136.58,10.48]
[1642614403474,14.1569,136.67,136.55,22.7263]
[1642614403702,10.9832,136.63,136.55,22.7263]
[1642614403874,2.928,136.62,136.53,22.9292]
[1642614404075,3.178,136.62,136.53,22.9292]
[1642614404277,0.25,136.62,136.52,10.48]
[1642614404476,2.928,136.61,136.53,35.26432972]
[1642614404675,0.25,136.6,136.53,35.26432972]
[1642614405274,43.81016183,136.6,136.53,35.26432972]
[1642614405475,43.81016183,136.6,136.52,10.48]
[1642614405476,54.79606183,136.6,136.52,10.48]
[1642614405776,2.928,136.59,136.52,10.48]
[1642614406180,0.25,136.58,136.52,10.48]
[1642614406577,0.25,136.58,136.53,37.5491342]
[1642614407177,0.25,136.59,136.53,37.5491342]
[1642614407579,10.987,136.58,136.53,37.5491342]
[1642614407779,0.25,136.57,136.53,37.5491342]
[1642614408180,0.25,136.57,136.52,10.48]
[1642614408380,0.25,136.57,136.47,26.0488]
[1642614408580,11.2379,136.57,136.49,10.48]
[1642614408783,11.2379,136.57,136.5,0.25]
[1642614408980,11.2379,136.57,136.48,10.9879]
[1642614409180,40.93500099,136.56,136.47,10.48]
[1642614409381,43.86300099,136.56,136.47,10.48]
[1642614409681,37.99930251,136.53,136.47,10.48]
[1642614410183,0.25,136.52,136.43,36.5978]
[1642614410383,0.25,136.52,136.43,33.6678]
[1642614410986,0.25,136.52,136.44,47.73342245]
[1642614411219,45.37892651,136.5,136.44,47.73342245]
[1642614411523,45.37892651,136.5,136.43,33.6678]
[1642614411524,45.37892651,136.5,136.43,10.48]
[1642614411718,0.25,136.49,136.43,10.48]
[1642614413124,0.25,136.49,136.42,51.49197584]
[1642614415125,37.25756002,136.51,136.42,51.49197584]
[1642614415326,0.25,136.5,136.42,51.49197584]
[1642614415525,2.931,136.51,136.43,0.25]
[1642614415734,26.668,136.54,136.44,10.9916]
[1642614415927,23.737,136.54,136.44,13.9216]
[1642614416126,23.737,136.54,136.45,0.25]
[1642614416326,23.737,136.54,136.45,44.3081673]
[1642614416327,84.25744955,136.54,136.45,44.3081673]
[1642614416529,60.52044955,136.54,136.45,44.3081673]
[1642614416932,0.25,136.53,136.45,44.3081673]
[1642614417231,3.18,136.53,136.45,55.0486673]
[1642614418029,0.25,136.53,136.45,55.0486673]
[1642614418430,11.2413,136.53,136.45,55.0486673]
[1642614420731,2.93,136.54,136.46,0.25]
[1642614420934,24.2896,136.57,136.47,10.9886]
[1642614421131,2.93,136.58,136.48,10.48]
[1642614421333,2.928,136.59,136.48,10.73]
[1642614421731,2.928,136.59,136.49,40.49927584]
[1642614421732,35.80680725,136.58,136.49,40.49927584]
[1642614421931,10.9886,136.57,136.49,46.86327584]
[1642614422135,35.80680725,136.58,136.5,0.25]
[1642614422332,35.80680725,136.58,136.5,3.178]
[1642614422933,46.79410725,136.58,136.5,3.178]
[1642614423533,46.79410725,136.58,136.5,11.2367]
[1642614423738,35.80680725,136.58,136.5,11.2367]
[1642614423935,35.80680725,136.58,136.5,28.6087]
[1642614424134,10.9862,136.6,136.5,28.6087]
[1642614424336,2.928,136.62,136.5,28.6087]
[1642614424538,2.928,136.63,136.51,2.928]
[1642614424740,2.928,136.63,136.54,10.9836]
[1642614424938,111.9,136.64,136.54,18.2696]
[1642614425138,153.17664094,136.64,136.55,38.10124477]
[1642614425339,111.9,136.64,136.55,38.10124477]
[1642614425538,111.9,136.64,136.56,10.48]
[1642614425738,111.9,136.64,136.57,0.25]
[1642614426038,111.9,136.64,136.58,10.98]
[1642614426238,111.9,136.64,136.59,40.48796703]
[1642614426738,111.9,136.64,136.59,40.23796703]
[1642614426940,161.26610908,136.64,136.57,10.9805]
[1642614427139,161.26610908,136.64,136.58,0.25]
[1642614427941,111.9,136.64,136.58,11.2303]
[1642614428140,111.9,136.64,136.58,19.0123]
[1642614428739,111.9,136.64,136.58,29.4923]
[1642614428940,111.9,136.64,136.59,44.76623961]
[1642614429142,111.9,136.64,136.6,10.9787]
[1642614429340,111.9,136.64,136.6,11.2287]
[1642614430343,41.88683925,136.69,136.6,11.2287]
[1642614430742,41.88683925,136.69,136.6,21.7087]
[1642614431442,2.927,136.68,136.6,21.7087]
[1642614432843,2.927,136.69,136.6,94.6787]
[1642614433043,113.73610826,136.71,136.61,2.927]
[1642614433243,0.25,136.7,136.63,10.9759]
[1642614433643,111.9,136.71,136.64,0.25]
[1642614433849,111.9,136.71,136.64,47.67620353]
[1642614435451,111.9,136.71,136.64,58.65130353]
[1642614435650,111.9,136.71,136.65,10.48]
[1642614436052,111.9,136.71,136.66,0.25]
[1642614436250,111.9,136.71,136.66,10.73]
[1642614436251,161.20851147,136.71,136.66,10.73]
[1642614437481,111.9,136.71,136.66,10.73]
[1642614438481,156.17479708,136.71,136.66,10.73]
[1642614439083,0.25,136.7,136.66,10.48]
[1642614439480,2.926,136.69,136.62,10.48]
[1642614439683,3.177,136.7,136.62,10.73]
[1642614440084,2.927,136.7,136.63,45.32830664]
[1642614440285,2.926,136.72,136.64,0.25]
[1642614440583,2.926,136.73,136.65,10.48]
[1642614440789,0.25,136.71,136.66,0.25]
[1642614441184,2.926,136.73,136.66,39.4791365]
[1642614441385,2.926,136.75,136.67,10.48]
[1642614441584,1.82712602,136.76,136.67,13.406]
[1642614441882,111.9,136.77,136.68,0.25]
[1642614442084,2.924,136.76,136.68,0.25]
[1642614442282,39.2242927,136.75,136.68,11.2216]
[1642614442484,39.2242927,136.75,136.67,13.406]
[1642614442684,3.174,136.74,136.67,10.48]
[1642614443386,1.82712602,136.73,136.67,10.48]
[1642614443585,2.426,136.72,136.66,1.02305]
[1642614443785,48.16981714,136.71,136.66,1.02305]
[1642614443985,2.926,136.7,136.66,1.02305]
[1642614444185,3.176,136.7,136.66,1.02305]
[1642614445588,14.1542,136.7,136.66,1.02305]
[1642614446290,2.926,136.72,136.66,1.02305]
[1642614446489,2.926,136.73,136.67,0.25]
[1642614446688,4.76210826,136.75,136.67,0.25]
[1642614446891,2.924,136.76,136.67,10.73]
[1642614447089,113.73610826,136.77,136.68,37.41126557]
[1642614447090,34.82804425,136.75,136.68,37.41126557]
[1642614447287,34.82804425,136.75,136.69,0.25]
[1642614447488,113.73610826,136.77,136.68,37.41126557]
[1642614447689,2.924,136.76,136.69,0.25]
[1642614447891,111.9,136.77,136.69,0.25]
[1642614448097,0.25,136.76,136.69,0.25]
[1642614448991,6.94623568,136.8,136.71,72.97]
[1642614449191,134.79677073,136.87,136.71,72.97]
[1642614449192,2.924,136.82,136.72,10.73]
[1642614449392,29.84263568,136.86,136.74,131.05]
[1642614449692,114.824,136.87,136.75,92.623]
[1642614449891,43.93455661,136.86,136.76,13.15779208]
[1642614450090,43.93455661,136.86,136.77,21.4443]
[1642614450294,46.85755661,136.86,136.77,29.2323]
[1642614451491,111.9,136.87,136.77,29.2323]
[1642614451691,111.9,136.87,136.8,10.9616]
[1642614451890,111.9,136.87,136.81,10.48]
[1642614452090,111.9,136.87,136.81,10.73]
[1642614452290,111.9,136.87,136.81,17.124]
[1642614452699,2.923,136.91,136.81,28.0856]
[1642614453508,47.30043274,136.91,136.81,28.0856]
[1642614453710,44.37743274,136.91,136.82,2.922]
[1642614453903,44.37743274,136.91,136.84,10.959]
[1642614454104,44.37743274,136.91,136.85,10.48]
[1642614454304,54.36583568,136.97,136.85,10.73]
[1642614454605,50.3436,136.97,136.85,10.73]
[1642614454804,0.25,136.96,136.85,10.73]
[1642614455004,2.92,136.95,136.85,21.6881]
[1642614455204,0.25,136.94,136.85,21.6881]
[1642614455504,2.92,136.93,136.85,21.6881]
[1642614455703,0.25,136.92,136.85,21.6881]
[1642614458006,2.92,136.93,136.85,21.6881]
[1642614458206,2.92,136.93,136.85,29.8981]
[1642614458409,111.9,136.94,136.86,6.0]
[1642614458608,111.9,136.94,136.88,10.9555]
[1642614458806,111.9,136.94,136.89,10.48]
[1642614459006,2.922,136.99,136.89,10.73]
[1642614459007,38.92601597,136.95,136.89,10.73]
[1642614460113,38.92601597,136.95,136.89,10.48]
[1642614460313,2.92,136.94,136.89,10.48]
[1642614461112,38.92601597,136.95,136.9,11.2046]
[1642614461311,38.92601597,136.95,136.9,21.6846]
[1642614461512,38.92601597,136.95,136.9,10.48]
[1642614462512,41.84601597,136.95,136.9,10.48]
[1642614462711,38.92601597,136.95,136.91,0.25]
[1642614462911,38.92601597,136.95,136.9,10.48]
[1642614463115,0.25,136.94,136.9,10.48]
[1642614463515,38.92601597,136.95,136.9,10.48]
[1642614464114,0.25,136.94,136.9,10.48]
[1642614464318,49.42830048,136.92,136.87,10.48]
[1642614464715,2.92,136.93,136.87,10.48]
[1642614464915,0.25,136.94,136.87,10.48]
[1642614465316,11.208,136.96,136.87,10.48]
[1642614465515,2.92,136.95,136.88,0.25]
[1642614465721,0.25,136.94,136.88,0.25]
[1642614465915,2.92,136.95,136.88,0.25]
[1642614466119,0.25,136.96,136.89,10.48]
[1642614466315,41.03577216,136.97,136.9,0.25]
[1642614466516,2.92,136.97,136.9,0.25]
[1642614466915,2.92,136.97,136.9,10.73]
[1642614467321,47.5889,136.98,136.9,10.73]
[1642614467718,0.25,136.97,136.9,10.73]
[1642614467918,0.25,136.97,136.9,21.6845]
[1642614468119,47.5889,136.98,136.9,21.6845]
[1642614468319,48.68087099,136.99,136.9,21.6845]
[1642614468519,45.76087099,136.99,136.91,2.92]
[1642614468720,45.76087099,136.99,136.92,10.73]
[1642614469820,0.25,136.98,136.92,10.73]
[1642614470224,45.76087099,136.99,136.92,10.73]
[1642614470424,2.92,136.98,136.92,10.73]
[1642614470622,45.76087099,136.99,136.92,10.73]
[1642614471546,45.76087099,136.99,136.92,10.48]
[1642614471746,45.76087099,136.99,136.93,0.25]
[1642614472147,45.76087099,136.99,136.93,10.73]
[1642614472949,45.76087099,136.99,136.93,10.48]
[1642614472950,0.25,136.98,136.93,10.48]
[1642614473347,2.92,136.97,136.93,10.48]
[1642614473646,2.92,136.97,136.9,10.48]
[1642614473850,2.92,136.99,136.91,0.25]
[1642614474052,114.82,137.0,136.92,10.48]
[1642614474249,0.25,136.99,136.92,10.48]
[1642614474649,58.90420244,136.99,136.92,10.48]
[1642614474850,2.92,136.98,136.92,10.48]
[1642614475250,0.25,136.97,136.92,10.48]
[1642614477053,2.92,136.98,136.92,10.48]
[1642614477353,61.57420244,136.99,136.93,0.25]
[1642614477552,58.65420244,136.99,136.93,0.25]
[1642614477755,0.25,136.98,136.93,0.25]
[1642614478452,11.2059,136.98,136.92,10.48]
[1642614478853,15.22813568,136.98,136.88,13.4]
[1642614479056,40.79816972,136.96,136.89,0.25]
[1642614479253,3.17,136.95,136.89,0.25]
[1642614480455,14.1283,136.95,136.89,0.25]
[1642614480955,2.92,136.95,136.89,0.25]
[1642614481155,2.92,136.95,136.9,10.48]
[1642614481356,40.79816972,136.96,136.9,10.48]
[1642614481756,40.79816972,136.96,136.91,0.25]
[1642614482857,44.8204054,136.96,136.91,0.25]
[1642614484461,44.8204054,136.96,136.9,10.48]
[1642614484661,0.25,136.95,136.9,10.48]
[1642614484861,4.27223568,136.95,136.9,10.48]
[1642614486066,15.23003568,136.95,136.85,2.92]
[1642614486265,44.21672387,136.93,136.85,2.92]
[1642614486465,2.922,136.92,136.85,2.92]
[1642614486667,44.74235179,136.9,136.85,2.92]
[1642614486864,2.922,136.89,136.85,2.92]
[1642614487065,10.9634,136.88,136.85,2.92]
[1642614487264,55.75040721,136.87,136.85,2.92]
[1642614487765,52.82840721,136.87,136.85,2.92]
[1642614488164,63.79260721,136.87,136.85,2.92]
[1642614494771,66.71460721,136.87,136.85,2.92]
[1642614495472,139.68460721,136.87,136.79,10.48]
[1642614496074,139.68460721,136.87,136.76,56.9946]
[1642614497077,1.82712602,136.86,136.76,56.9946]
[1642614497274,10.967,136.84,136.76,56.9946]
[1642614497506,36.65210003,136.83,136.76,56.9946]
[1642614497675,0.25,136.83,136.76,56.9946]
[1642614499475,53.35450488,136.84,136.76,67.9605]
[1642614499876,53.35450488,136.84,136.76,69.47468221]
[1642614500676,0.25,136.83,136.76,67.9605]
[1642614502983,3.174,136.83,136.76,56.9946]
[1642614503981,11.2176,136.83,136.76,56.9946]
[1642614504184,72.97,136.82,136.72,38.3308]
[1642614504384,77.72112602,136.82,136.72,35.4068]
[1642614504687,0.25,136.81,136.72,35.4068]
[1642614504884,2.924,136.8,136.72,35.4068]
[1642614505411,0.25,136.79,136.72,35.4068]
[1642614505612,73.22,136.79,136.7,2.924]
[1642614505812,2.924,136.78,136.7,2.924]
[1642614506212,49.66835771,136.77,136.7,2.924]
[1642614506412,2.924,136.76,136.7,2.924]
[1642614506613,49.66835771,136.77,136.7,2.924]
[1642614506813,2.924,136.76,136.7,2.924]
[1642614507215,49.66835771,136.77,136.7,2.924]
[1642614507412,13.8976,136.76,136.7,2.924]
[1642614507713,0.25,136.75,136.7,2.924]
[1642614507912,0.25,136.75,136.69,10.48]
[1642614508112,13.8976,136.76,136.69,10.48]
[1642614508313,0.25,136.75,136.69,10.48]
[1642614509516,2.924,136.74,136.69,10.48]
[1642614509718,0.25,136.73,136.69,10.48]
[1642614509917,37.88051049,136.73,136.69,10.48]
[1642614510916,37.88051049,136.73,136.66,59.21405]
[1642614512618,37.88051049,136.73,136.66,70.18775]
[1642614513720,0.25,136.73,136.66,70.18775]
[1642614513922,2.924,136.74,136.67,0.25]
[1642614514120,13.8989,136.77,136.68,10.48]
[1642614514721,43.67291258,136.76,136.68,10.48]
[1642614515824,43.67291258,136.76,136.69,0.25]
[1642614517533,54.64611258,136.76,136.68,10.48]
[1642614517729,73.22,136.75,136.66,59.21405]
[1642614517927,76.144,136.75,136.66,59.21405]
[1642614518528,10.9753,136.74,136.66,59.21405]
[1642614518728,3.176,136.73,136.66,11.50305]
[1642614518929,36.05965175,136.72,136.66,11.50305]
[1642614519331,0.25,136.71,136.66,11.50305]
[1642614519530,19.0203,136.71,136.66,11.50305]
[1642614519731,19.0203,136.71,136.66,1.02305]
[1642614519930,21.9463,136.71,136.66,1.02305]
[1642614520430,10.969,136.71,136.66,1.02305]
[1642614520635,3.176,136.71,136.66,1.02305]
[1642614521531,2.926,136.71,136.66,1.02305]
[1642614522230,2.926,136.75,136.67,10.73]
[1642614522636,0.25,136.74,136.67,10.48]
[1642614522932,46.72079883,136.72,136.66,1.02305]
[1642614523131,2.926,136.71,136.66,1.02305]
[1642614523331,3.176,136.71,136.66,1.02305]
[1642614525439,14.153,136.71,136.66,1.02305]
[1642614527141,3.176,136.71,136.66,1.02305]
[1642614527341,13.9012,136.73,136.67,0.25]
[1642614527540,13.9012,136.73,136.66,1.02305]
[1642614527541,10.9752,136.73,136.66,1.02305]
[1642614528143,46.27268105,136.73,136.66,1.02305]
[1642614528944,0.25,136.72,136.66,1.02305]
[1642614532071,11.2256,136.72,136.66,1.02305]
[1642614535973,10.9756,136.72,136.66,1.02305]
[1642614536173,35.29748105,136.73,136.66,1.02305]
[1642614536777,2.926,136.74,136.67,10.73]
[1642614536977,2.926,136.77,136.67,10.73]
[1642614537785,39.17260014,136.76,136.67,10.73]
[1642614538084,50.14550014,136.76,136.67,35.14478743]
[1642614538483,0.25,136.75,136.67,35.14478743]
[1642614539281,50.14550014,136.76,136.67,35.14478743]
[1642614539483,10.9729,136.76,136.67,35.14478743]
[1642614539882,13.8953,136.78,136.67,35.14478743]
[1642614540084,13.8953,136.78,136.67,38.06878743]
[1642614540482,51.86034918,136.78,136.67,38.06878743]
[1642614541285,51.86034918,136.78,136.67,24.6262]
[1642614541685,0.25,136.77,136.67,24.6262]
[1642614541885,11.222,136.77,136.67,24.6262]
[1642614542584,11.222,136.77,136.67,47.1771]
[1642614543798,2.924,136.76,136.67,47.1771]
[1642614543986,49.61478551,136.75,136.67,47.1771]
[1642614548491,2.924,136.76,136.68,74.21931894]
[1642614548690,2.924,136.78,136.7,10.9698]
[1642614548891,2.924,136.79,136.71,10.48]
[1642614549192,2.924,136.79,136.72,24.2342]
[1642614549390,37.05589039,136.78,136.73,10.48]
[1642614549591,37.05589039,136.78,136.73,10.73]
[1642614551394,2.924,136.79,136.73,10.73]
[1642614551795,2.924,136.79,136.73,11.97931894]
[1642614551995,2.924,136.79,136.74,6.0]
[1642614552195,2.924,136.79,136.75,10.73]
[1642614552393,2.924,136.79,136.76,12.54605136]
[1642614552594,0.0001,136.79,136.77,13.403]
[1642614552797,40.14208275,136.86,136.78,45.0]
[1642614552997,40.14208275,136.86,136.79,10.48]
[1642614553197,40.14208275,136.86,136.79,10.73]
[1642614554096,0.25,136.85,136.79,10.73]
[1642614554296,11.2154,136.85,136.79,10.73]
[1642614560608,13.5344,136.85,136.79,10.73]
[1642614561215,2.569,136.85,136.79,10.73]
[1642614561415,0.25,136.85,136.79,10.73]
[1642614561808,2.57,136.86,136.79,10.73]
[1642614562208,41.82638578,136.85,136.79,10.73]
[1642614562408,2.57,136.86,136.79,10.73]
[1642614562608,2.32,136.86,136.79,21.6925]
[1642614562808,58.5643,136.89,136.79,21.6925]
[1642614563610,43.04094431,136.88,136.79,21.6925]
[1642614564008,0.25,136.87,136.79,21.6925]
[1642614564210,43.04094431,136.88,136.79,21.6925]
[1642614565408,43.04094431,136.88,136.79,21.1925]
[1642614567514,43.04094431,136.88,136.79,94.1625]
[1642614570019,43.04094431,136.88,136.81,10.9608]
[1642614570220,43.04094431,136.88,136.82,10.73]
[1642614570822,2.319,136.87,136.82,10.73]
[1642614571220,2.319,136.87,136.82,10.48]
[1642614571425,2.319,136.87,136.78,10.48]
[1642614571623,10.9662,136.84,136.78,10.48]
[1642614571822,2.568,136.83,136.78,10.48]
[1642614572022,0.25,136.83,136.78,10.48]
[1642614573247,2.571,136.83,136.78,10.48]
[1642614574046,49.47028232,136.82,136.78,10.48]
[1642614575042,0.25,136.81,136.78,10.48]
[1642614575243,6.06439994,136.8,136.78,10.48]
[1642614575642,35.46226269,136.79,136.78,10.48]
[1642614575844,35.46226269,136.79,136.73,36.7447]
[1642614576043,35.46226269,136.79,136.74,10.48]
[1642614576247,0.25,136.81,136.74,10.48]
[1642614576647,0.25,136.83,136.74,10.48]
[1642614576846,2.318,136.82,136.74,10.48]
[1642614577245,42.76630827,136.81,136.74,10.48]
[1642614577646,42.76630827,136.81,136.75,0.25]
[1642614577846,45.07630827,136.81,136.75,0.25]
[1642614578449,2.56,136.81,136.75,0.25]
[1642614578747,26.2227,136.83,136.75,0.25]
[1642614579150,0.25,136.82,136.75,0.25]
[1642614579548,45.20421777,136.82,136.75,0.25]
[1642614579749,44.95421777,136.82,136.75,0.25]
[1642614579949,44.95421777,136.82,136.76,10.48]
[1642614580153,47.29021777,136.82,136.76,10.48]
[1642614581154,0.25,136.81,136.76,10.48]
[1642614586059,2.336,136.82,136.76,10.48]
[1642614586363,2.05771411,136.84,136.77,0.25]
[1642614586559,2.05771411,136.86,136.77,10.42331894]
[1642614586758,2.05771411,136.9,136.8,131.05]
[1642614586967,2.05771411,136.9,136.81,10.48]
[1642614587160,2.05771411,136.92,136.83,10.9575]
[1642614587458,2.05771411,136.92,136.84,14.65131894]
[1642614587658,2.05771411,136.93,136.84,20.90131894]
[1642614587859,25.3315,136.97,136.84,20.90131894]
[1642614587860,2.05771411,136.94,136.84,20.90131894]
[1642614588065,2.05771411,136.95,136.86,10.9554]
[1642614588259,37.25028028,136.96,136.87,13.65]
[1642614588459,2.05771411,136.97,136.88,12.90472675]
[1642614588659,2.05771411,136.98,136.89,13.4]
[1642614588861,2.05771411,136.98,136.89,26.735]
[1642614589059,4.36071411,136.99,136.89,26.735]
[1642614589259,4.36071411,136.99,136.89,37.689]
[1642614589463,15.31491411,136.99,136.89,24.604]
[1642614589661,2.05771411,136.98,136.89,24.604]
[1642614589876,2.05771411,136.98,136.89,10.73]
[1642614590063,2.05771411,136.97,136.89,10.73]
[1642614590364,47.12041231,136.96,136.89,10.73]
[1642614591166,49.43941231,136.96,136.89,10.73]
[1642614591467,0.25,136.95,136.89,10.48]
[1642614591664,2.334,136.94,136.89,10.48]
[1642614591864,2.349,136.95,136.89,10.48]
[1642614592765,2.349,136.95,136.89,21.4348]
[1642614593765,0.25,136.94,136.89,21.4348]
[1642614594167,0.25,136.94,136.89,10.48]
[1642614595368,0.25,136.94,136.89,21.4348]
[1642614595568,2.319,136.95,136.89,21.4348]
[1642614595771,2.287,136.96,136.89,21.4348]
[1642614595970,2.255,136.98,136.9,0.25]
[1642614596170,2.224,137.0,136.91,10.48]
[1642614596370,2.194,136.98,136.91,10.48]
[1642614596575,0.25,136.99,136.92,0.25]
[1642614596773,43.40834147,136.99,136.92,10.73]
[1642614597176,43.40834147,136.99,136.92,10.48]
[1642614598171,2.319,136.98,136.92,10.48]
[1642614598572,0.25,136.97,136.92,10.48]
[1642614600498,11.2057,136.97,136.92,10.48]
[1642614600895,0.25,136.97,136.92,10.48]
[1642614601497,0.25,136.97,136.92,10.38]
[1642614602098,2.317,136.96,136.92,10.38]
[1642614602497,10.9557,136.97,136.92,10.38]
[1642614603698,11.2066,136.96,136.92,10.38]
[1642614605100,11.2066,136.96,136.86,2.92]
[1642614605300,11.2066,136.96,136.86,10.48]
[1642614605301,10.9605,136.93,136.86,10.48]
[1642614605501,2.322,136.92,136.86,10.48]
[1642614605802,2.572,136.92,136.86,10.48]
[1642614606000,49.43459773,136.91,136.82,10.48]
[1642614606299,0.25,136.9,136.83,0.25]
[1642614607201,0.25,136.9,136.82,10.48]
[1642614607404,2.569,136.9,136.82,10.48]
[1642614607700,13.5304,136.9,136.82,10.48]
[1642614609101,13.5304,136.9,136.83,0.25]
[1642614610102,2.569,136.9,136.83,0.25]
[1642614610400,0.25,136.9,136.84,10.48]
[1642614611503,2.318,136.89,136.81,10.48]
[1642614611700,0.25,136.88,136.81,10.48]
[1642614611901,44.60926917,136.86,136.81,10.48]
[1642614612101,2.317,136.85,136.81,10.48]
[1642614612300,55.57386917,136.86,136.81,10.48]
[1642614614309,10.9646,136.86,136.81,10.48]
[1642614615409,2.316,136.87,136.81,10.48]
[1642614615611,11.2134,136.88,136.81,10.48]
[1642614616012,10.9634,136.88,136.82,0.25]
[1642614616209,10.9634,136.88,136.83,10.48]
[1642614616410,49.24519844,136.89,136.83,10.48]
[1642614616611,13.3809,136.9,136.84,0.25]
[1642614616815,11.0619,136.9,136.84,0.25]
[1642614617413,0.1,136.9,136.84,10.73]
[1642614619415,0.1,136.9,136.84,22.23887505]
[1642614619616,0.1,136.9,136.85,13.8794]
[1642614619819,0.1,136.9,136.86,10.73]
[1642614620617,0.1,136.9,136.86,10.48]
[1642614621220,0.1,136.9,136.87,0.25]
[1642614621417,0.1,136.9,136.87,10.73]
[1642614624123,3.03219997,136.89,136.87,10.73]
[1642614624324,0.1,136.9,136.87,10.73]
[1642614626357,0.1,136.9,136.87,10.48]
[1642614626862,2.05771411,136.95,136.89,57.0]
[1642614627063,4.02223568,136.99,136.9,19.4]
[1642614627358,2.08669382,137.01,136.9,20.900731]
[1642614627558,1.58669382,137.01,136.91,24.317]
[1642614627757,1.58669382,137.01,136.92,24.15972306]
[1642614627959,1.58669382,137.01,136.92,38.66645406]
[1642614628164,10.23680386,137.15,136.96,68.0]
[1642614628359,371.7,137.26,136.96,68.0]
[1642614628360,10.28474514,137.22,137.12,131.05]
[1642614628569,24.68338834,137.3,137.21,141.9776]
[1642614628570,10.7614,137.26,137.21,141.9776]
[1642614628760,188.55899674,137.34,137.22,3.164]
[1642614628959,220.60175462,137.34,137.3,131.05]
[1642614629158,220.60175462,137.34,137.31,10.48]
[1642614629159,178.28294154,137.34,137.31,10.48]
[1642614630159,43.0,137.32,137.31,10.48]
[1642614630358,41.53793466,137.3,137.24,131.05]
[1642614630562,41.53793466,137.3,137.24,141.53]
[1642614630758,41.53793466,137.3,137.25,0.25]
[1642614630958,178.28294154,137.34,137.26,10.48]
[1642614631159,178.28294154,137.34,137.26,13.392]
[1642614631359,178.28294154,137.34,137.27,0.25]
[1642614631563,1.82712602,137.36,137.27,10.73]
[1642614631762,10.9262,137.39,137.27,10.48]
[1642614631961,1.82712602,137.34,137.27,10.48]
[1642614632164,1.82712602,137.34,137.28,10.0]
[1642614632364,45.58727072,137.35,137.28,10.0]
[1642614632763,0.25,137.34,137.28,10.0]
[1642614632963,45.58727072,137.35,137.27,10.48]
[1642614633267,58.34269674,137.35,137.27,10.48]
[1642614634268,0.25,137.34,137.24,10.48]
[1642614634665,1.82712602,137.33,137.24,10.48]
[1642614634865,41.2276523,137.32,137.24,10.48]
[1642614635066,41.4776523,137.32,137.24,10.48]
[1642614635266,41.2276523,137.32,137.24,10.48]
[1642614635466,52.1573523,137.32,137.24,10.48]
[1642614635970,52.1573523,137.32,137.25,0.25]
[1642614636666,52.1573523,137.32,137.24,10.48]
[1642614636867,53.98447832,137.32,137.21,2.912]
[1642614637074,10.9344,137.29,137.22,10.0]
[1642614637267,49.14337124,137.28,137.18,10.48]
[1642614637466,49.14337124,137.28,137.19,10.48]
[1642614637867,49.14337124,137.28,137.19,21.4115]
[1642614638268,49.14337124,137.28,137.2,0.25]
[1642614638667,49.14337124,137.28,137.2,10.73]
[1642614639469,49.14337124,137.28,137.2,21.6607]